[Event "DVM U14 2021"]
[Site "Willingen"]
[Date "2022.08.14"]
[Round "4"]
[White "Gotfried, Elias"]
[Black "Martin Fernandez, Rafael"]
[Result "0-1"]
[ECO "B02"]
[WhiteElo "1589"]
[BlackElo "1645"]
[Annotator "NA RC"]
[PlyCount "90"]
[EventDate "2022.08.12"]
[EventType "team-tourn"]
[EventRounds "7"]
[EventCountry "GER"]
[SourceTitle "playchess.com"]
[Source "ChessBase"]
[SourceQuality "1"]
[TimeControl "40/5400+30:1800+30"]

1. e4 {[%emt 0:00:03]} d5 {[%emt 0:00:00]} 2. exd5 {[%emt 0:00:05]} Nf6 {[%emt 0:00:21]} 3. Nc3 {[%emt 0:02:37]} Nxd5 {[%emt 0:01:08]} 4. Nxd5 {[%emt 0:00:08]} Qxd5 {[%emt 0:00:12]} 5. d4 {[%emt 0:00:22]} Nc6 {[%emt 0:00:18]} 6. c3 {[%emt 0:00:52]} e5 {[%emt 0:00:28]} 7. dxe5 {[%emt 0:00:10]} Qxd1+ {[%emt 0:00:05]} 8. Kxd1 {[%emt 0:00:15]} Nxe5 {[%emt 0:01:36]} 9. Be2 {[%emt 0:00:14]} Bf5 {[%emt 0:00:44]} 10. Nf3 {[%emt 0:00:12]} O-O-O+ {[%emt 0:00:50]} 11. Ke1 {[%emt 0:00:16]} Nd3+ {[%emt 0:00:19]} 12. Bxd3 {[%emt 0:00:21]} Bxd3 {[%emt 0:00:25]} 13. Be3 {[%emt 0:02:28]} Bd6 {[%emt 0:00:56]} 14. Rd1 {[%emt 0:01:40]} Be4 {[%emt 0:01:27]} 15. Rd4 {[%emt 0:02:31]} Rhe8 {[%emt 0:03:25]} 16. h4 {[%emt 0:02:17]} f6 {[%emt 0:00:46]} 17. h5 {[%emt 0:00:28]} b6 {[%emt 0:00:20]} 18. Rh4 {[%emt 0:00:49]} Bb7 {[%emt 0:00:38]} 19. Kf1 {[%emt 0:01:59]} Rd7 {[%emt 0:05:57]} 20. Nd2 {[%emt 0:02:49]} Rde7 {[%emt 0:00:57]} 21. b4 {[%emt 0:10:13]} Be5 {[%emt 0:00:51]} 22. Rd3 {[%emt 0:00:16]} f5 {[%emt 0:07:23]} 23. Nf3 {[%emt 0:03:29]} Bf6 {[%emt 0:00:48]} 24. Rf4 {[%emt 0:02:14]} g5 {[%emt 0:01:10]} 25. Rxf5 {[%emt 0:00:19]} Be4 {[%emt 0:00:51]} 26. Rxf6 {[%emt 0:00:05]} Bxd3+ {[%emt 0:00:26]} 27. Kg1 {[%emt 0:01:19]} g4 {[%emt 0:00:36]} 28. Nd4 {[%emt 0:01:20]} g3 {[%emt 0:05:14]} 29. Nf5 {[%emt 0:00:40]} gxf2+ {[%emt 0:00:36]} 30. Bxf2 {[%emt 0:00:32]} Re2 {[%emt 0:01:39]} 31. Rf7 {[%emt 0:01:09]} Bxf5 {[%emt 0:00:06]} 32. Rxf5 {[%emt 0:00:19]} Rxa2 {[%emt 0:00:08]} 33. Rf7 {[%emt 0:00:14]} Ree2 {[%emt 0:00:42]} 34. g4 {[%emt 0:01:04]} Re4 {[%emt 0:07:01]} 35. Rg7 {[%emt 0:01:00]} a5 {[%emt 0:01:37]} 36. Bg3 {[%emt 0:00:08]} Rc4 {[%emt 0:00:57]} 37. Be5 {[%emt 0:00:22]} axb4 {[%emt 0:01:00]} 38. Rxh7 {[%emt 0:00:17]} bxc3 {[%emt 0:01:29]} 39. Bxc3 {[%emt 0:00:06]} Rxc3 {[%emt 0:00:10]} 40. Rf7 {[%emt 0:00:33]} Rc1+ {[%emt 0:00:06]} 41. Rf1 {[%emt 0:30:06]} Rxf1+ {[%emt 0:30:06]} 42. Kxf1 {[%emt 0:00:06]} Ra4 {[%emt 0:00:20]} 43. g5 {[%emt 0:00:05]} Ra5 {[%emt 0:00:22]} 44. h6 {[%emt 0:00:08]} Rxg5 {[%emt 0:00:02]} 45. h7 {[%emt 0:00:09]} Rh5 {[%emt 0:00:33]} 0-1

[Event "DVM U14 2021"]
[Site "Willingen"]
[Date "2022.08.14"]
[Round "4"]
[White "Widmann, Maximilian"]
[Black "Vollbehr, Bjarne"]
[Result "0-1"]
[ECO "A41"]
[WhiteElo "1573"]
[BlackElo "1654"]
[Annotator "NA RC"]
[PlyCount "88"]
[EventDate "2022.08.12"]
[EventType "team-tourn"]
[EventRounds "7"]
[EventCountry "GER"]
[SourceTitle "playchess.com"]
[Source "ChessBase"]
[SourceQuality "1"]
[TimeControl "40/5400+30:1800+30"]

1. Nf3 {[%emt 0:00:01]} g6 {[%emt 0:00:10]} 2. d4 {[%emt 0:00:22]} Bg7 {[%emt 0:00:08]} 3. c4 {[%emt 0:01:00]} d6 {[%emt 0:00:26]} 4. Nc3 {[%emt 0:00:35]} Nc6 {[%emt 0:00:43]} 5. g3 {[%emt 0:01:24]} e5 {[%emt 0:00:25]} 6. dxe5 {[%emt 0:01:20]} Nxe5 {[%emt 0:00:11]} 7. Nxe5 {[%emt 0:01:44]} Bxe5 {[%emt 0:00:06]} 8. Bg2 {[%emt 0:00:43]} Ne7 {[%emt 0:03:15]} 9. O-O {[%emt 0:02:40]} O-O {[%emt 0:00:52]} 10. Qc2 {[%emt 0:05:17]} Nc6 {[%emt 0:03:37]} 11. b3 {[%emt 0:08:10]} Bd7 {[%emt 0:05:18]} 12. Bb2 {[%emt 0:01:48]} Nd4 {[%emt 0:01:14]} 13. Qd2 {[%emt 0:04:59]} Bc6 {[%emt 0:22:03]} 14. Nd5 {[%emt 0:09:50]} Ne6 {[%emt 0:00:34]} 15. Bxe5 {[%emt 0:02:07]} dxe5 {[%emt 0:00:11]} 16. Rad1 {[%emt 0:02:09]} Nd4 {[%emt 0:04:28]} 17. e3 {[%emt 0:08:09]} Bxd5 {[%emt 0:00:53]} 18. cxd5 {[%emt 0:06:27]} Nf5 {[%emt 0:00:51]} 19. Qb4 {[%emt 0:03:17]} Nd6 {[%emt 0:00:54]} 20. Rc1 {[%emt 0:03:40]} f5 {[%emt 0:00:13]} 21. Qc3 {[%emt 0:02:27]} Qf6 {[%emt 0:07:53]} 22. Qxc7 {[%emt 0:11:05]} Rf7 {[%emt 0:01:10]} 23. Qc3 {[%emt 0:03:45]} Rd8 {[%emt 0:04:14]} 24. Rfd1 {[%emt 0:01:56]} Kg7 {[%emt 0:02:52]} 25. f3 {[%emt 0:05:03]} Rfd7 {[%emt 0:02:35]} 26. e4 {[%emt 0:01:44]} Nb5 {[%emt 0:00:43]} 27. Qe3 {[%emt 0:03:29]} Nd4 {[%emt 0:01:18]} 28. Rd3 {[%emt 0:02:12]} Qb6 {[%emt 0:07:09]} 29. Kf1 {[%emt 0:00:48]} fxe4 {[%emt 0:01:07]} 30. fxe4 {[%emt 0:00:56]} Rf8+ {[%emt 0:00:27]} 31. Ke1 {[%emt 0:02:14]} Rdf7 {[%emt 0:00:23]} 32. Rxd4 {[%emt 0:01:55]} exd4 {[%emt 0:00:38]} 33. Qd2 {[%emt 0:01:35]} d3 {[%emt 0:01:34]} 34. Qxd3 {[%emt 0:01:05]} Qf2+ {[%emt 0:00:21]} 35. Kd1 {[%emt 0:00:04]} Qxg2 {[%emt 0:01:01]} 36. Qd4+ {[%emt 0:01:05]} Kg8 {[%emt 0:00:13]} 37. Qd2 {[%emt 0:00:06]} Rf1+ {[%emt 0:00:26]} 38. Kc2 {[%emt 0:00:04]} R8f2 {[%emt 0:00:18]} 39. Qxf2 {[%emt 0:00:53]} Qxf2+ {[%emt 0:00:32]} 40. Kd3 {[%emt 0:00:39]} Rxc1 {[%emt 0:00:28]} 41. e5 {[%emt 0:30:26]} Qc2+ {[%emt 0:30:20]} 42. Kd4 {[%emt 0:01:14]} Rd1+ {[%emt 0:00:09]} 43. Ke3 {[%emt 0:00:10]} Rd3+ {[%emt 0:00:29]} 44. Kf4 {[%emt 0:00:10]} Qf2+ {[%emt 0:00:25]} 0-1

[Event "DVM U14 2021"]
[Site "Willingen"]
[Date "2022.08.14"]
[Round "4"]
[White "Lipinsky, Pierre"]
[Black "Stein, Theodor"]
[Result "1/2-1/2"]
[ECO "E73"]
[WhiteElo "1560"]
[BlackElo "1510"]
[Annotator "NA RC"]
[PlyCount "48"]
[EventDate "2022.08.12"]
[EventType "team-tourn"]
[EventRounds "7"]
[EventCountry "GER"]
[SourceTitle "playchess.com"]
[Source "ChessBase"]
[SourceQuality "1"]
[TimeControl "40/5400+30:1800+30"]

1. d4 {[%emt 0:00:05]} g6 {[%emt 0:00:00]} 2. c4 {[%emt 0:00:04]} Nf6 {[%emt 0:00:00]} 3. Nc3 {[%emt 0:00:04]} Bg7 {[%emt 0:00:00]} 4. e4 {[%emt 0:00:04]} d6 {[%emt 0:00:00]} 5. Be2 {[%emt 0:00:06]} O-O {[%emt 0:00:00]} 6. Be3 {[%emt 0:07:09]} c6 {[%emt 0:01:14]} 7. Qd2 {[%emt 0:07:58]} a6 {[%emt 0:04:57]} 8. f3 {[%emt 0:06:52]} e5 {[%emt 0:05:02]} 9. d5 {[%emt 0:02:12]} cxd5 {[%emt 0:02:28]} 10. Nxd5 {[%emt 0:04:07]} Nxd5 {[%emt 0:02:44]} 11. cxd5 {[%emt 0:06:42]} f5 {[%emt 0:09:49]} 12. Bd3 {[%emt 0:05:25]} Nd7 {[%emt 0:07:54]} 13. Ne2 {[%emt 0:01:38]} Nf6 {[%emt 0:04:10]} 14. Nc3 {[%emt 0:09:26]} fxe4 {[%emt 0:04:12]} 15. Nxe4 {[%emt 0:01:49]} Nxe4 {[%emt 0:04:00]} 16. Bxe4 {[%emt 0:01:09]} Bf5 {[%emt 0:02:26]} 17. O-O {[%emt 0:02:55]} Rc8 {[%emt 0:09:33]} 18. Qb4 {[%emt 0:05:54]} Rf7 {[%emt 0:09:12]} 19. Rf2 {[%emt 0:06:05]} Bf8 {[%emt 0:02:19]} 20. Raf1 {[%emt 0:02:18]} b5 {[%emt 0:02:53]} 21. Qd2 {[%emt 0:08:07]} Qd7 {[%emt 0:06:39]} 22. Rc1 {[%emt 0:05:24]} Qb7 {[%emt 0:03:38]} 23. Rxc8 {[%emt 0:00:19]} Qxc8 {[%emt 0:01:44]} 24. Qc1 {[%emt 0:01:09]} Rc7 {[%emt 2:55:17]} 1/2-1/2

[Event "DVM U14 2021"]
[Site "Willingen"]
[Date "2022.08.14"]
[Round "4"]
[White "von Beckh, Frieda"]
[Black "Aravindan, Midhulan"]
[Result "1-0"]
[ECO "C14"]
[WhiteElo "1548"]
[BlackElo "1642"]
[Annotator "NA RC"]
[PlyCount "61"]
[EventDate "2022.08.12"]
[EventType "team-tourn"]
[EventRounds "7"]
[EventCountry "GER"]
[SourceTitle "playchess.com"]
[Source "ChessBase"]
[SourceQuality "1"]
[TimeControl "40/5400+30:1800+30"]

1. e4 {[%emt 0:00:04]} e6 {[%emt 0:00:00]} 2. d4 {[%emt 0:00:06]} d5 {[%emt 0:00:00]} 3. Nc3 {[%emt 0:00:09]} Nf6 {[%emt 0:00:00]} 4. Bg5 {[%emt 0:00:09]} Be7 {[%emt 0:00:00]} 5. e5 {[%emt 0:00:05]} Nfd7 {[%emt 0:00:00]} 6. h4 {[%emt 0:02:06]} h6 {[%emt 0:00:01]} 7. Bxe7 {[%emt 0:00:13]} Qxe7 {[%emt 0:00:45]} 8. Nf3 {[%emt 0:00:26]} a6 {[%emt 0:01:22]} 9. Qd2 {[%emt 0:00:26]} c5 {[%emt 0:01:30]} 10. dxc5 {[%emt 0:01:15]} Nxc5 {[%emt 0:03:34]} 11. Nd4 {[%emt 0:01:26]} Nc6 {[%emt 0:00:55]} 12. f4 {[%emt 0:01:33]} Bd7 {[%emt 0:08:05]} 13. g4 {[%emt 0:04:40]} g5 {[%emt 0:02:34]} 14. hxg5 {[%emt 0:01:47]} O-O-O {[%emt 0:02:14]} 15. gxh6 {[%emt 0:01:53]} f6 {[%emt 0:04:54]} 16. Nxc6 {[%emt 0:01:21]} Bxc6 {[%emt 0:10:17]} 17. exf6 {[%emt 0:01:19]} Qxf6 {[%emt 0:00:59]} 18. g5 {[%emt 0:00:54]} Qg6 {[%emt 0:08:11]} 19. Bd3 {[%emt 0:06:36]} Nxd3+ {[%emt 0:00:57]} 20. Qxd3 {[%emt 0:01:24]} Qf7 {[%emt 0:06:45]} 21. Qd4 {[%emt 0:03:59]} Rdf8 {[%emt 0:04:13]} 22. O-O-O {[%emt 0:03:16]} Qxf4+ {[%emt 0:00:20]} 23. Qxf4 {[%emt 0:00:10]} Rxf4 {[%emt 0:01:01]} 24. g6 {[%emt 0:04:09]} Rg4 {[%emt 0:00:41]} 25. g7 {[%emt 0:06:13]} Rxh6 {[%emt 0:00:16]} 26. Rxh6 {[%emt 0:00:45]} Rxg7 {[%emt 0:00:11]} 27. Rxe6 {[%emt 0:00:24]} Rg5 {[%emt 0:02:32]} 28. Re2 {[%emt 0:06:08]} Kd7 {[%emt 0:02:41]} 29. Red2 {[%emt 0:01:01]} Ke6 {[%emt 0:01:22]} 30. Ne2 {[%emt 0:02:39]} Ke7 {[%emt 0:00:33]} 31. Nf4 {[%emt 0:02:27]} 1-0

[Event "DVM U14 2021"]
[Site "Willingen"]
[Date "2022.08.14"]
[Round "4"]
[White "Kommessin, Felix"]
[Black "Borgert, Alexander"]
[Result "0-1"]
[ECO "B22"]
[WhiteElo "1536"]
[BlackElo "1477"]
[Annotator "NA RC"]
[PlyCount "106"]
[EventDate "2022.08.12"]
[EventType "team-tourn"]
[EventRounds "7"]
[EventCountry "GER"]
[SourceTitle "playchess.com"]
[Source "ChessBase"]
[SourceQuality "1"]
[TimeControl "40/5400+30:1800+30"]

1. e4 {[%emt 0:00:03]} c5 {[%emt 0:00:04]} 2. d4 {[%emt 0:00:04]} cxd4 {[%emt 0:00:05]} 3. c3 {[%emt 0:00:05]} Nf6 {[%emt 0:00:08]} 4. e5 {[%emt 0:00:06]} Nd5 {[%emt 0:00:05]} 5. Nf3 {[%emt 0:00:23]} Nc6 {[%emt 0:00:06]} 6. cxd4 {[%emt 0:01:04]} d6 {[%emt 0:00:10]} 7. exd6 {[%emt 0:00:55]} Qxd6 {[%emt 0:00:17]} 8. Nc3 {[%emt 0:12:29]} Bf5 {[%emt 0:03:33]} 9. Bc4 {[%emt 0:14:44]} Qe6+ {[%emt 0:02:42]} 10. Be3 {[%emt 0:07:16]} Nxc3 {[%emt 0:03:06]} 11. Bxe6 {[%emt 0:00:46]} Nxd1 {[%emt 0:00:06]} 12. Bxf7+ {[%emt 0:00:07]} Kxf7 {[%emt 0:00:18]} 13. Rxd1 {[%emt 0:00:19]} e6 {[%emt 0:01:58]} 14. Ne5+ {[%emt 0:03:10]} Nxe5 {[%emt 0:00:11]} 15. dxe5 {[%emt 0:00:06]} Bb4+ {[%emt 0:00:11]} 16. Ke2 {[%emt 0:00:18]} Rhd8 {[%emt 0:00:24]} 17. f3 {[%emt 0:01:27]} Rac8 {[%emt 0:00:29]} 18. Rxd8 {[%emt 0:02:20]} Rxd8 {[%emt 0:00:13]} 19. Rc1 {[%emt 0:00:11]} Rd7 {[%emt 0:00:40]} 20. a3 {[%emt 0:00:40]} Be7 {[%emt 0:01:29]} 21. Bxa7 {[%emt 0:01:25]} Bg5 {[%emt 0:00:20]} 22. Be3 {[%emt 0:01:20]} Bxe3 {[%emt 0:00:45]} 23. Kxe3 {[%emt 0:00:06]} Rd3+ {[%emt 0:00:08]} 24. Kf2 {[%emt 0:01:03]} Rb3 {[%emt 0:00:07]} 25. Rc7+ {[%emt 0:01:43]} Kg6 {[%emt 0:00:47]} 26. g4 {[%emt 0:00:20]} Rxb2+ {[%emt 0:00:55]} 27. Kg3 {[%emt 0:00:07]} Bb1 {[%emt 0:00:18]} 28. h4 {[%emt 0:00:48]} h6 {[%emt 0:00:17]} 29. f4 {[%emt 0:06:17]} Rb3+ {[%emt 0:00:25]} 30. Kh2 {[%emt 0:00:58]} Be4 {[%emt 0:00:41]} 31. h5+ {[%emt 0:00:43]} Kh7 {[%emt 0:00:35]} 32. g5 {[%emt 0:01:10]} Rb2+ {[%emt 0:01:52]} 33. Kh3 {[%emt 0:07:50]} Bf5+ {[%emt 0:00:14]} 34. Kg3 {[%emt 0:00:27]} Rb3+ {[%emt 0:00:06]} 35. Kg2 {[%emt 0:01:03]} Rxa3 {[%emt 0:06:04]} 36. g6+ {[%emt 0:00:58]} Bxg6 {[%emt 0:00:06]} 37. hxg6+ {[%emt 0:00:04]} Kxg6 {[%emt 0:00:10]} 38. Rxb7 {[%emt 0:00:05]} h5 {[%emt 0:01:18]} 39. Rb8 {[%emt 0:00:59]} h4 {[%emt 0:00:37]} 40. Rh8 {[%emt 0:00:38]} Rg3+ {[%emt 0:00:41]} 41. Kf2 {[%emt 0:30:19]} Kf5 {[%emt 0:33:02]} 42. Re8 {[%emt 0:06:56]} Rg4 {[%emt 0:03:21]} 43. Ke3 {[%emt 0:01:20]} Rg3+ {[%emt 0:02:37]} 44. Kf2 {[%emt 0:00:38]} Kxf4 {[%emt 0:01:36]} 45. Rxe6 {[%emt 0:00:12]} h3 {[%emt 0:00:10]} 46. Re8 {[%emt 0:00:27]} Rg2+ {[%emt 0:01:45]} 47. Kf1 {[%emt 0:00:55]} Kg3 {[%emt 0:05:49]} 48. Rg8 {[%emt 0:06:54]} Rf2+ {[%emt 0:00:11]} 49. Ke1 {[%emt 0:00:22]} Rf7 {[%emt 0:00:31]} 50. Rh8 {[%emt 0:01:54]} g5 {[%emt 0:01:12]} 51. Rg8 {[%emt 0:00:46]} Rf5 {[%emt 0:00:40]} 52. e6 {[%emt 0:00:18]} h2 {[%emt 0:00:13]} 53. Rh8 {[%emt 0:01:33]} Kg2 {[%emt 0:00:18]} 0-1

[Event "DVM U14 2021"]
[Site "Willingen"]
[Date "2022.08.14"]
[Round "4"]
[White "Strauss, Florian"]
[Black "Kiefhaber, Tobias"]
[Result "0-1"]
[ECO "B13"]
[WhiteElo "1527"]
[BlackElo "1581"]
[Annotator "NA RC"]
[PlyCount "56"]
[EventDate "2022.08.12"]
[EventType "team-tourn"]
[EventRounds "7"]
[EventCountry "GER"]
[SourceTitle "playchess.com"]
[Source "ChessBase"]
[SourceQuality "1"]
[TimeControl "40/5400+30:1800+30"]

1. e4 {[%emt 0:00:01]} c6 {[%emt 0:00:10]} 2. d4 {[%emt 0:00:03]} d5 {[%emt 0:00:08]} 3. exd5 {[%emt 0:00:03]} cxd5 {[%emt 0:00:28]} 4. Bd3 {[%emt 0:00:03]} Nf6 {[%emt 0:00:23]} 5. h3 {[%emt 0:00:04]} g6 {[%emt 0:00:50]} 6. Bf4 {[%emt 0:01:03]} Bf5 {[%emt 0:02:22]} 7. Bxf5 {[%emt 0:00:40]} gxf5 {[%emt 0:00:13]} 8. Nf3 {[%emt 0:00:22]} e6 {[%emt 0:01:20]} 9. c3 {[%emt 0:00:28]} Bd6 {[%emt 0:00:53]} 10. Bxd6 {[%emt 0:01:27]} Qxd6 {[%emt 0:00:04]} 11. Ne5 {[%emt 0:00:20]} Nc6 {[%emt 0:02:04]} 12. Nd3 {[%emt 0:00:14]} Rg8 {[%emt 0:00:44]} 13. g3 {[%emt 0:06:19]} Ne4 {[%emt 0:02:14]} 14. Rg1 {[%emt 0:01:35]} O-O-O {[%emt 0:02:10]} 15. Nd2 {[%emt 0:03:46]} e5 {[%emt 0:07:11]} 16. dxe5 {[%emt 0:09:18]} Nxe5 {[%emt 0:00:11]} 17. Nxe5 {[%emt 0:01:17]} Qxe5 {[%emt 0:00:30]} 18. Nf3 {[%emt 0:01:32]} Qe7 {[%emt 0:05:11]} 19. Qe2 {[%emt 0:03:23]} Qc5 {[%emt 0:04:38]} 20. Kf1 {[%emt 0:09:03]} Rde8 {[%emt 0:04:58]} 21. Qc2 {[%emt 0:00:55]} Qc4+ {[%emt 0:02:09]} 22. Kg2 {[%emt 0:01:03]} Nxg3 {[%emt 0:01:42]} 23. Kh2 {[%emt 0:01:53]} Re2 {[%emt 0:01:21]} 24. Qb1 {[%emt 0:04:04]} Rxf2+ {[%emt 0:00:55]} 25. Rg2 {[%emt 0:00:10]} Rxg2+ {[%emt 0:00:18]} 26. Kxg2 {[%emt 0:00:08]} Qe2+ {[%emt 0:00:08]} 27. Kg1 {[%emt 0:00:28]} Nf1+ {[%emt 0:00:19]} 28. Kh1 {[%emt 0:00:18]} Qg2# {[%emt 0:00:30]} 0-1

[Event "DVM U14 2021"]
[Site "Willingen"]
[Date "2022.08.14"]
[Round "4"]
[White "Spranger, Tobias"]
[Black "Huber, Laura"]
[Result "1-0"]
[ECO "D56"]
[WhiteElo "1522"]
[BlackElo "1302"]
[Annotator "NA RC"]
[PlyCount "151"]
[EventDate "2022.08.12"]
[EventType "team-tourn"]
[EventRounds "7"]
[EventCountry "GER"]
[SourceTitle "playchess.com"]
[Source "ChessBase"]
[SourceQuality "1"]
[TimeControl "40/5400+30:1800+30"]

1. d4 {[%emt 0:00:02]} d5 {[%emt 0:00:05]} 2. c4 {[%emt 0:00:04]} e6 {[%emt 0:00:02]} 3. Nc3 {[%emt 0:00:05]} Nf6 {[%emt 0:00:04]} 4. Bg5 {[%emt 0:00:05]} Be7 {[%emt 0:00:26]} 5. Nf3 {[%emt 0:00:14]} O-O {[%emt 0:00:49]} 6. e3 {[%emt 0:00:12]} h6 {[%emt 0:00:39]} 7. Bh4 {[%emt 0:00:18]} Re8 {[%emt 0:04:52]} 8. Bd3 {[%emt 0:01:00]} dxc4 {[%emt 0:00:15]} 9. Bxc4 {[%emt 0:00:07]} b6 {[%emt 0:01:37]} 10. O-O {[%emt 0:00:34]} Bb7 {[%emt 0:00:25]} 11. Bg3 {[%emt 0:00:50]} Bd6 {[%emt 0:02:16]} 12. Bh4 {[%emt 0:01:58]} Be7 {[%emt 0:04:49]} 13. Re1 {[%emt 0:00:14]} Ne4 {[%emt 0:06:37]} 14. Bxe7 {[%emt 0:02:26]} Qxe7 {[%emt 0:04:46]} 15. Ne5 {[%emt 0:05:39]} Nxc3 {[%emt 0:03:17]} 16. bxc3 {[%emt 0:00:15]} Nc6 {[%emt 0:00:53]} 17. Nf3 {[%emt 0:01:19]} Rad8 {[%emt 0:01:20]} 18. e4 {[%emt 0:00:32]} Na5 {[%emt 0:09:06]} 19. Bb3 {[%emt 0:01:29]} Nxb3 {[%emt 0:01:03]} 20. Qxb3 {[%emt 0:00:34]} Qd6 {[%emt 0:09:52]} 21. Rad1 {[%emt 0:02:39]} Qf4 {[%emt 0:01:39]} 22. Nd2 {[%emt 0:02:32]} c5 {[%emt 0:04:25]} 23. g3 {[%emt 0:02:35]} Qg5 {[%emt 0:01:59]} 24. Nc4 {[%emt 0:02:37]} cxd4 {[%emt 0:06:01]} 25. cxd4 {[%emt 0:00:49]} Qe7 {[%emt 0:01:34]} 26. Ne5 {[%emt 0:04:45]} Rd6 {[%emt 0:05:32]} 27. f3 {[%emt 0:12:14]} Red8 {[%emt 0:00:27]} 28. Qa4 {[%emt 0:01:28]} Ba8 {[%emt 0:03:19]} 29. Re2 {[%emt 0:02:18]} f6 {[%emt 0:01:38]} 30. Ng4 {[%emt 0:02:58]} Qd7 {[%emt 0:00:35]} 31. Qxd7 {[%emt 0:01:24]} R6xd7 {[%emt 0:00:47]} 32. Red2 {[%emt 0:00:27]} Bc6 {[%emt 0:04:36]} 33. Rc1 {[%emt 0:04:38]} Bb5 {[%emt 0:02:25]} 34. Rb1 {[%emt 0:01:15]} Bc6 {[%emt 0:01:07]} 35. Rb4 {[%emt 0:01:13]} Ba8 {[%emt 0:02:46]} 36. Kf2 {[%emt 0:00:42]} Rd6 {[%emt 0:00:58]} 37. Ke3 {[%emt 0:00:38]} R6d7 {[%emt 0:01:53]} 38. Rc4 {[%emt 0:02:09]} Kf8 {[%emt 0:02:06]} 39. Nf2 {[%emt 0:02:52]} f5 {[%emt 0:01:48]} 40. Nd3 {[%emt 0:00:43]} b5 {[%emt 0:08:41]} 41. Rb4 {[%emt 0:33:19]} a6 {[%emt 0:31:59]} 42. Nc5 {[%emt 0:01:26]} Rd6 {[%emt 0:01:09]} 43. Rb3 {[%emt 0:00:19]} Ke7 {[%emt 0:00:00]} 44. Ra3 {[%emt 0:00:00]} fxe4 {[%emt 0:00:00]} 45. fxe4 {[%emt 0:00:00]} e5 {[%emt 0:00:00]} 46. Rad3 {[%emt 0:00:00]} exd4+ {[%emt 0:00:00]} 47. Rxd4 {[%emt 0:00:00]} Rxd4 {[%emt 0:00:00]} 48. Rxd4 {[%emt 0:00:00]} Rxd4 {[%emt 0:00:00]} 49. Kxd4 {[%emt 0:00:00]} a5 {[%emt 0:00:00]} 50. Nb3 {[%emt 0:00:00]} a4 {[%emt 0:00:00]} 51. Nc5 {[%emt 0:00:00]} Bc6 {[%emt 0:00:51]} 52. a3 {[%emt 0:00:00]} Kd6 {[%emt 0:00:00]} 53. e5+ {[%emt 0:00:00]} Ke7 {[%emt 0:00:00]} 54. Na6 {[%emt 0:00:00]} Ke6 {[%emt 0:00:00]} 55. Nc5+ {[%emt 0:00:00]} Ke7 {[%emt 0:00:00]} 56. Nd3 {[%emt 0:00:00]} Ke6 {[%emt 0:00:00]} 57. Nf4+ {[%emt 0:00:00]} Ke7 {[%emt 0:00:00]} 58. Kc5 {[%emt 0:00:00]} Be8 {[%emt 0:00:00]} 59. Nd5+ {[%emt 0:00:00]} Kd7 {[%emt 0:00:00]} 60. e6+ {[%emt 0:00:00]} Kxe6 {[%emt 0:00:00]} 61. Nc7+ {[%emt 0:00:00]} Ke7 {[%emt 0:00:00]} 62. Nxe8 {[%emt 0:00:00]} Kxe8 {[%emt 0:00:00]} 63. Kxb5 {[%emt 0:00:00]} Kd7 {[%emt 0:00:00]} 64. Kxa4 {[%emt 0:00:00]} g5 {[%emt 0:00:00]} 65. Kb5 {[%emt 0:00:00]} Kc7 {[%emt 0:00:00]} 66. a4 {[%emt 0:00:00]} h5 {[%emt 0:00:00]} 67. a5 {[%emt 0:00:00]} h4 {[%emt 0:00:00]} 68. g4 {[%emt 0:00:00]} Kb7 {[%emt 0:00:00]} 69. Kc5 {[%emt 0:00:00]} Ka6 {[%emt 0:00:14]} 70. Kd5 {[%emt 0:00:00]} Kxa5 {[%emt 0:00:00]} 71. Ke5 {[%emt 0:00:00]} Kb6 {[%emt 0:00:00]} 72. Kf5 {[%emt 0:00:00]} Kc7 {[%emt 0:00:00]} 73. Kxg5 {[%emt 0:00:00]} Kd7 {[%emt 0:00:00]} 74. Kxh4 {[%emt 0:00:00]} Ke7 {[%emt 0:00:00]} 75. Kg5 {[%emt 0:00:00]} Kf7 {[%emt 0:00:00]} 76. Kh6 {[%emt 0:00:00]} 1-0

[Event "DVM U14 2021"]
[Site "Willingen"]
[Date "2022.08.14"]
[Round "4"]
[White "Eichhorn, Valentin"]
[Black "Trenz, Finn"]
[Result "1/2-1/2"]
[ECO "D04"]
[WhiteElo "1506"]
[BlackElo "1667"]
[Annotator "NA RC"]
[PlyCount "41"]
[EventDate "2022.08.12"]
[EventType "team-tourn"]
[EventRounds "7"]
[EventCountry "GER"]
[SourceTitle "playchess.com"]
[Source "ChessBase"]
[SourceQuality "1"]
[TimeControl "40/5400+30:1800+30"]

1. d4 {[%emt 0:58:36]} d5 {[%emt 0:00:17]} 2. Nf3 {[%emt 0:00:14]} Nf6 {[%emt 0:00:23]} 3. e3 {[%emt 0:00:08]} c5 {[%emt 0:00:29]} 4. b3 {[%emt 0:00:00]} cxd4 {[%emt 0:00:00]} 5. exd4 {[%emt 0:00:00]} Nc6 {[%emt 0:02:14]} 6. Bb2 {[%emt 0:00:00]} g6 {[%emt 0:01:00]} 7. Bd3 {[%emt 0:00:00]} Nb4 {[%emt 0:03:40]} 8. Bb5+ {[%emt 0:00:00]} Bd7 {[%emt 0:01:47]} 9. Bxd7+ {[%emt 0:00:00]} Qxd7 {[%emt 0:00:37]} 10. O-O {[%emt 0:00:00]} Rc8 {[%emt 0:01:24]} 11. c3 {[%emt 0:00:00]} Nc6 {[%emt 0:01:00]} 12. Nbd2 {[%emt 0:00:00]} Bg7 {[%emt 0:06:59]} 13. Re1 {[%emt 0:00:00]} O-O {[%emt 0:05:16]} 14. Rc1 {[%emt 0:00:00]} Rfd8 {[%emt 0:03:15]} 15. Ne5 {[%emt 0:00:00]} Qd6 {[%emt 0:02:30]} 16. Qe2 {[%emt 0:00:00]} e6 {[%emt 0:14:10]} 17. Rcd1 {[%emt 0:00:00]} Nd7 {[%emt 0:02:45]} 18. f4 {[%emt 0:00:00]} a5 {[%emt 0:01:44]} 19. Ndf3 {[%emt 0:00:00]} a4 {[%emt 0:08:56]} 20. Nxc6 {[%emt 0:00:00]} bxc6 {[%emt 0:00:40]} 21. b4 {[%emt 0:00:24]} 1/2-1/2